Cogmind - Beta 16 @@@ ROGUE MODE // 2026.01.12 @ 15:36:34 Player: BottomOfTheSwamp Result: Self-destructed Performance ------------- Evolutions (2) 1000 Regions Visited (4) 800 Robots Destroyed (10) 50 Value Destroyed (318) 318 Prototype IDs (0) 0 Alien Tech Used (0) 0 Bonus (-27) -27 TOTAL SCORE: 2141 Bonus ------- Friendly Fire -27 Cogmind --------- Core Integrity 142/550 Matter 300/300 Energy 67/100 System Corruption 0% Temperature Cool (9) Movement Core (50) Location -8/Materials Parts ------- > --- POWER (1) -------- (None) > --- PROPULSION (3) --- (None) > --- UTILITY (5) ------ Propulsion Shielding > --- WEAPON (2) ------- (None) > --- INVENTORY (5) ---- Aluminum Leg Small Storage Unit Improved Datajack Peak State ------------ > --- POWER ------------ (None) > --- PROPULSION ------- (None) > --- UTILITY ---------- Heat Sink Small Storage Unit Propulsion Shielding > --- WEAPON ----------- Subdweller Machine Gun Battle Cannon > --- INVENTORY -------- Small Storage Unit Subdweller Laser Improved Datajack [Rating: 7] Favorites ----------- Power Light Ion Engine Engine Light Ion Engine Propulsion Hover Unit Leg Aluminum Leg Hover Unit Hover Unit Utility Small Storage Unit Device Heat Sink Storage Small Storage Unit Protection Propulsion Shielding Weapon Light Assault Rifle Energy Gun Particle Gun Ballistic Gun Light Assault Rifle Ballistic Cannon Battle Cannon Launcher Rocket Launcher Build | -11 -10 -10 -10 -8 ------- Run | Yrd Mat Min Sub Mat Slots Evolved 4 | . . . . 4 Power . | . . . . . Propulsion 1 | . . . . 1 Utility 3 | . . . . 3 Weapon . | . . . . . Parts Attached 14 | 6 2 1 1 4 Power 1 | 1 . . . . Engine 1 | 1 . . . . Core . | . . . . . Reactor . | . . . . . Propulsion 3 | 2 1 . . . Treads . | . . . . . Leg 2 | 2 . . . . Wheel . | . . . . . Hover 1 | . 1 . . . Flight . | . . . . . Utility 3 | 1 1 . . 1 Device 1 | . . . . 1 Storage 1 | 1 . . . . Processor . | . . . . . Hackware . | . . . . . Protection 1 | . 1 . . . Artifact . | . . . . . Weapon 7 | 2 . 1 1 3 Energy Gun 2 | . . . . 2 Energy Cannon . | . . . . . Ballistic Gun 3 | 2 . . 1 . Ballistic Cannon 1 | . . . . 1 Launcher 1 | . . 1 . . Special Weapon . | . . . . . Impact Weapon . | . . . . . Slashing Weapon . | . . . . . Piercing Weapon . | . . . . . Special Melee Weapon . | . . . . . Unidentified Prototypes . | . . . . . Parts Lost 11 | . . 2 2 7 Power 1 | . . . . 1 Propulsion 1 | . . . 1 . Utility 2 | . . . . 2 Weapon 7 | . . 2 1 4 Highest Loss Streak 7 | . . 1 2 7 To Critical Strikes . | . . . . . Average Backups 2 | 1 . . 1 4 Power . | . . . . . Propulsion . | . . . . . Utility . | . . . 1 1 Weapon . | . . . . 1 Tool/Special . | . . . . . Unused Backups 2 | . . . . 2 Power . | . . . . . Propulsion . | . . . . . Utility 1 | . . . . 1 Weapon . | . . . . . Tool/Special 1 | . . . . 1 Average Slot Usage (%) 57 | . 84 75 61 34 Engine 11 | . 14 14 14 7 Leg 2 | . 8 . . . Hover 5 | . 9 14 7 . Storage 11 | . 14 14 14 8 Protection 10 | . 9 14 14 9 Ballistic Gun 12 | . 28 15 3 8 Launcher 2 | . . 3 7 . Peak Build Rating 7 | 6 6 6 6 7 Average Rating 5 | 3 5 5 5 4 On Entrance 4 | . 6 6 6 5 Avg Prop Armor Cover (%) . | . . . . . Naked Turns . | . . . . . Heaviest Build 14 | 10 11 13 13 14 Greatest Support 20 | 20 20 6 6 3 Greatest Overweight (x) 4 | . 3 2 4 4 Average Overweight (x) 2 | . . 1 2 3 Largest Inventory Capacity 8 | 8 8 8 8 8 Average Capacity 7 | 6 8 8 8 7 Most Carried 5 | 5 1 2 3 5 Average Carried 2 | 1 . . 1 4 Final Capacity 8 | 8 8 8 8 5 Final Carried 3 | . . 1 3 3 Class Distribution -------------------- 100% | Mutant Dominant Class ---------------- Mutant | -10/Materials Mutant | -10/Mines Mutant | -10/Subcaves Mutant | -8/Materials Resources | -11 -10 -10 -10 -8 ----------- Run | Yrd Mat Min Sub Mat Matter Collected 460 | 260 54 2 34 110 Remotely . | . . . . . Salvage Created 390 | . 215 69 34 72 Parts 17 | . 10 6 1 . Haulers Intercepted 1 | . 1 . . . Recyclers Shooed 3 | . 1 . . 2 Parts Field Recycled . | . . . . . Retrieved Matter . | . . . . . Parts Self-Destructed . | . . . . . Prevented . | . . . . . Parts Restored . | . . . . . Kills | -11 -10 -10 -10 -8 ------- Run | Yrd Mat Min Sub Mat Combat Hostiles Destroyed 9 | . 4 2 1 2 Guns 7 | . 4 1 . 2 AOE 2 | . . 1 1 . Classes Destroyed 5 | . 3 . 1 1 Hauler 1 | . 1 . . . Swarmer 1 | . 1 . . . Grunt 6 | . 3 2 . 1 Brawler 1 | . . . . 1 Subdweller 1 | . . . 1 . Best Kill Streak 4 | . 4 1 1 1 Combat Bots Only 2 | . 2 1 1 1 Max Kills in Single Turn 1 | . 1 1 1 1 Gunslinging . | . . . . . Exploded 1 | . . 1 1 . Melee . | . . . . . Uniques/NPCs Destroyed . | . . . . . Combat | -11 -10 -10 -10 -8 -------- Run | Yrd Mat Min Sub Mat Hostile Shots Fired 119 | . 31 11 . 77 Missed 37 | . 12 3 . 22 Hits 82 | . 19 8 . 55 Melee 4 | . . . . 4 Projectile 78 | . 19 8 . 51 Critical Strikes 4 | . . . . 4 Damage Taken 1318 | . 178 128 118 894 Core 489 | . 37 8 36 408 Absorbed by Shields . | . . . . . Redirected to Shielding 12 | . 6 4 2 . Core Remaining (%) 83 | 100 . . 67 . Volleys Fired 50 | . 17 8 6 19 Largest 2 | . 2 2 1 2 Hottest 65 | . 40 40 33 65 Shots Fired 75 | . 34 10 6 25 Gun 62 | . 34 9 . 19 Cannon 6 | . . . . 6 Launcher 7 | . . 1 6 . Special . | . . . . . Kinetic 55 | . 34 9 . 12 Thermal 13 | . . . . 13 Explosive 7 | . . 1 6 . Electromagnetic . | . . . . . Robot Hit Streak 8 | . 8 4 . 5 Robot Miss Streak 2 | . 2 1 1 2 Penetration Max . | . . . . . Secondary Targets . | . . . . . Shots Hit Robots 46 | . 21 8 . 17 Core Hits 26 | . 13 6 2 5 Critical Kills . | . . . . . Critical Parts Destroyed . | . . . . . Critical Strikes 1 | . . . . 1 Burn 1 | . . . . 1 Melee Attacks . | . . . . . Impact . | . . . . . Slashing . | . . . . . Piercing . | . . . . . Sneak Attacks . | . . . . . Combat Hostiles . | . . . . . Follow-up Attacks . | . . . . . Damage Inflicted 733 | . 176 111 78 368 Guns 507 | . 176 54 . 277 Cannons 91 | . . . . 91 Explosions 135 | . . 57 78 . Melee . | . . . . . Ramming . | . . . . . Kinetic 420 | . 176 54 . 190 Thermal 178 | . . . . 178 Explosive 135 | . . 57 78 . Electromagnetic . | . . . . . Impact . | . . . . . Slashing . | . . . . . Piercing . | . . . . . Highest Corruption . | . . . . . Average Corruption . | . . . . . Corruption Purged . | . . . . . Corruption Blocked . | . . . . . Overload Shots . | . . . . . Overflow Damage 17 | . . . 17 . Projectiles . | . . . . . Explosions 17 | . . . 17 . Melee . | . . . . . Knockbacks 1 | . . . . 1 Impact . | . . . . . Kinetic 1 | . . . . 1 Secondary . | . . . . . Self-Inflicted Damage 124 | . . 25 99 . Shots 5 | . . 1 4 . Rammed . | . . . . . Targets Rammed . | . . . . . Kicked . | . . . . . Crushed . | . . . . . Highest Temperature 70 | . 22 10 . 70 Average Temperature 17 | . 5 5 . 33 Received Heat Transfer 489 | . 48 57 6 378 Siege Activations . | . . . . . Martial Activations . | . . . . . Shielding Activations . | . . . . . Robots Disrupted . | . . . . . Combat Hostiles . | . . . . . Robots Corrupted . | . . . . . Combat Hostiles . | . . . . . Parts Fried . | . . . . . Impact Corruptions . | . . . . . Robots Melted . | . . . . . Combat Hostiles . | . . . . . Parts Melted 2 | . . . . 2 Heat Transferred 384 | . . . . 384 Parts Sabotaged . | . . . . . Parts Stolen . | . . . . . Parts Stripped . | . . . . . Power Chain Reactions . | . . . . . Alert | -11 -10 -10 -10 -8 ------- Run | Yrd Mat Min Sub Mat Maximum Alert Level . | . . . . . Low Security (%) 100 | 100 100 100 . 100 Level 1 . | . . . . . Level 2 . | . . . . . Level 3 . | . . . . . Level 4 . | . . . . . Level 5 . | . . . . . High Security . | . . . . . Max Security . | . . . . . Peak Influence 77 | . 77 35 . 32 Initial 25 | . . 25 . . Average 6 | . 10 19 . 1 Influence Increases 217 | . 97 70 . 50 Destroy 0b10 Robot/C 160 | . 80 40 . 40 Destroy 0b10 Robot/NC 5 | . 5 . . . Destroy Leader 32 | . 12 10 . 10 Destroy Structure 5 | . . 5 . . Lose Combat Pursuer 15 | . . 15 . . Influence Decreases 203 | . 30 112 25 36 Entered New Map 55 | . . 42 13 . Time Decay 118 | . 30 60 12 16 Lost Part 30 | . . 10 . 20 Squads Dispatched 2 | . 2 . . . Investigation 1 | . 1 . . . Extermination . | . . . . . Reinforcement 1 | . 1 . . . Assault . | . . . . . Garrison . | . . . . . Intercept . | . . . . . Searches Triggered . | . . . . . Construction Impeded . | . . . . . Haulers Reinforced . | . . . . . Active Scanning Responses . | . . . . . Cargo Convoy Interrupts . | . . . . . Stealth | -11 -10 -10 -10 -8 --------- Run | Yrd Mat Min Sub Mat Distress Signals . | . . . . . Communications Jammed . | . . . . . Distress Signals . | . . . . . Times Spotted 16 | . 7 3 1 5 Peak Tracking Total 5 | . 3 2 1 5 Tactical Retreats 1 | . . 1 . . Traps | -11 -10 -10 -10 -8 ------- Run | Yrd Mat Min Sub Mat Traps Triggered 1 | . 1 . . . Indirectly . | . . . . . Trap Hack Attempts . | . . . . . Triggered . | . . . . . Disarmed . | . . . . . Reprogrammed . | . . . . . Reused . | . . . . . Traps Extracted . | . . . . . Installed . | . . . . . Triggered . | . . . . . Machines | -11 -10 -10 -10 -8 ---------- Run | Yrd Mat Min Sub Mat Machines Disabled . | . . . . . Max in Single Turn . | . . . . . Machines Repaired . | . . . . . Machines Dismantled . | . . . . . Machines Sabotaged . | . . . . . Overloaded Fab Kills . | . . . . . Hacking | -11 -10 -10 -10 -8 --------- Run | Yrd Mat Min Sub Mat Machines Accessed 2 | . 1 . . 1 Terminals 2 | . 1 . . 1 Fabricators . | . . . . . Repair Stations . | . . . . . Recycling Units . | . . . . . Scanalyzers . | . . . . . Garrison Access . | . . . . . Total Hacks 2 | . 1 . . 1 Successful . | . . . . . Failed 2 | . 1 . . 1 Catastrophic 2 | . 1 . . 1 Database Lockouts . | . . . . . Manual 2 | . 1 . . 1 Terminals 2 | . 1 . . 1 Fabricators . | . . . . . Repair Stations . | . . . . . Recycling Units . | . . . . . Scanalyzers . | . . . . . Garrison Access . | . . . . . Terminal Hacks . | . . . . . Fabricator Hacks . | . . . . . Repair Station Hacks . | . . . . . Recycling Unit Hacks . | . . . . . Scanalyzer . | . . . . . Garrison Access Hacks . | . . . . . Unauthorized Hacks . | . . . . . Terminals . | . . . . . Fabricators . | . . . . . Repair Stations . | . . . . . Recycling Units . | . . . . . Scanalyzers . | . . . . . Garrison Access . | . . . . . Data Cores Recovered . | . . . . . Used . | . . . . . Hacking Detections 2 | . 1 . . 1 Full Trace Events . | . . . . . Feedback Events . | . . . . . Feedback Blocked . | . . . . . Robot Schematics Acquired . | . . . . . Robots Built . | . . . . . Authchips . | . . . . . Time . | . . . . . Total Robot Build Rating . | . . . . . Part Schematics Acquired . | . . . . . Parts Built . | . . . . . Authchips . | . . . . . Time . | . . . . . Total Part Build Rating . | . . . . . Part Studies Acquired . | . . . . . Parts Repaired . | . . . . . Time . | . . . . . Parts Recycled . | . . . . . Recycled Matter . | . . . . . Retrieved Matter . | . . . . . Retrieved Components . | . . . . . Parts Scanalyzed . | . . . . . Part Schematics Acquired . | . . . . . Parts Damaged . | . . . . . Bothacking | -11 -10 -10 -10 -8 ------------ Run | Yrd Mat Min Sub Mat Used RIF Installer . | . . . . . Robots Hacked . | . . . . . Non-combat . | . . . . . Combat . | . . . . . Robot Hacks Applied . | . . . . . Relay Couplers Released . | . . . . . Fabnet Peak Effective % . | . . . . . Robots Rewired . | . . . . . Allies Hacked . | . . . . . Hacks Repelled . | . . . . . Allies | -11 -10 -10 -10 -8 -------- Run | Yrd Mat Min Sub Mat Total Allies . | . . . . . Largest Group . | . . . . . Highest-Rated Group . | . . . . . Highest-Rated Ally . | . . . . . Total Orders . | . . . . . Ally Attacks . | . . . . . Total Damage . | . . . . . Kills . | . . . . . Allies Corrupted . | . . . . . Allies Melted . | . . . . . Intel | -11 -10 -10 -10 -8 ------- Run | Yrd Mat Min Sub Mat Active Infowar (turns) . | . . . . . Robot Analysis Total . | . . . . . Derelict Logs Recovered 1 | . . . 1 . Drone Launches . | . . . . . Drone Recoveries . | . . . . . Exploration | -11 -10 -10 -10 -8 ------------- Run | Yrd Mat Min Sub Mat Turns Passed 1341 | 47 311 133 301 549 Spaces Moved 690 | 44 210 82 148 206 Core 300 | 23 1 . 70 206 Treads . | . . . . . Legs 88 | 21 67 . . . Wheels . | . . . . . Hover 302 | . 142 82 78 . Flight . | . . . . . Fastest Speed 50 | 50 120 120 150 50 Average Speed 169 | 83 120 132 184 241 Slowest Speed 250 | 120 200 180 250 250 Overloaded Moves . | . . . . . Propulsion Burnouts . | . . . . . Robots Hopped . | . . . . . Potential Cave-ins 6 | . . . 6 . Cave-ins Triggered . | . . . . . Exploration Rate (%) 15 | 4 27 19 11 15 Regions Visited 4 Branch Regions 2 Pre-discovered Areas . | . . . . . Known Exits Taken . | . . . . . Unknown Exits Taken 4 | 1 1 1 1 . Scrap Searched . | . . . . . Spaces Dug 59 | . . . 59 . Terrain Destroyed 81 | . . 5 76 . Melee . | . . . . . Projectile . | . . . . . AOE 81 | . . 5 76 . Terrain Rammed . | . . . . . Walls Destroyed . | . . . . . Machines Disabled . | . . . . . Actions | -11 -10 -10 -10 -8 --------- Run | Yrd Mat Min Sub Mat Total 800 | 54 242 99 172 233 Wait 32 | . 10 7 15 . Move 686 | 43 209 81 147 206 Hop . | . . . . . Pick Up 16 | 5 2 2 3 4 Fast Attach 1 | 1 . . . . Attach 13 | 5 2 1 1 4 Detach . | . . . . . Swap . | . . . . . Drop 2 | . 2 . . . Fire 50 | . 17 8 6 19 Melee . | . . . . . Ram . | . . . . . Kick . | . . . . . Crush . | . . . . . Escape Stasis . | . . . . . Rewire . | . . . . . Trap . | . . . . . Miscellaneous . | . . . . . Route ------- -11/Scrapyard -10/Materials -10/Mines -10/Subcaves -8/Materials History --------- Turn | Location | Event 8 | -11/Scrapyard | Discovered new exit (range 16) 48 | -11/Scrapyard | Entered Materials 313 | -10/Materials | Build established: Mutant 351 | -10/Materials | Discovered new exit (range 8) 359 | -10/Materials | Entered Mines 402 | -10/Mines | Received a Rocket Launcher from a helpful Derelict 483 | -10/Mines | Discovered new exit (range 3) 492 | -10/Mines | Entered Subcaves 493 | -10/Subcaves | Approached by a straggling Scientist 628 | -10/Subcaves | Ambushed by Subdweller buried in earth 693 | -10/Subcaves | A swath of the cavern ceiling suddenly collapsed 722 | -10/Subcaves | Shifting Twisted Machinery released Sub. Machine Gun 748 | -10/Subcaves | Shifting Twisted Machinery released Battle Cannon 760 | -10/Subcaves | Learned Materials machine intel 776 | -10/Subcaves | Discovered new exit (range 7) 789 | -10/Subcaves | Shifting Twisted Machinery released Sub. Monowheel 793 | -10/Subcaves | Entered Materials 793 | -8/Materials | Evolved 4 slots: Propulsion x1, Utility x3 794 | -8/Materials | Loaded intel: 54 machine locations 1316 | -8/Materials | Core integrity fell below 50% 1342 | -8/Materials | Self-destructed Last Messages --------------- 01304_ B-36 Bruiser destroyed. 01309_ G-47 Trooper destroyed. 01316_ Sub. Laser destroyed. 01318_ Acquired Particle Gun. 01323_ Acquired 3 matter. 01326_ K-01 Serf collects debris. 01326_ Destroyed Lgt. Nuclear Core. 01329_ G-47 Trooper heat spikes uncontrollably. 01330_ Imp. Heat Sink melted. 01330_ Aluminum Leg melted. 01330_ G-47 Trooper destroyed. 01331_ K-01 Serf collects debris. 01332_ Acquired 44 matter. 01334_ K-01 Serf collects debris. 01335_ R-06 Scavenger suffers critical hit (Burn). 01337_ K-01 Serf collects debris. 01339_ Acquired 10 matter. 01341_ K-01 Serf collects debris. 01341_ Acquired Aluminum Leg. 01342_ Particle Gun destroyed. Map ----- +----------------------------------------------------+ | ?"""??????????????????"""????????"""?????????????? | | ?"""?????????????????????????????"""?????????????? | | ????????????????????????????????????????????????"" | | ?????????????????????? ??????????????????????"" | | ????????????????????? ?????????????????????"" | | ??""????????????????? ????????????????T????"" | | ??""?????????????????? ?????????????????????"" | | ??T"?????????????????? ??????????????????????? | | ??""??????????????????# #??????????????????????? | | ??""??????????????????# #??????????????????????? | | ??????????????????????# #??????????????????????? | | ??????????????????????# k#??????????????????????? | | ??????????????????????# #??????????????????????? | | ??????????????????????# #??????????????????????? | | ??????????????????????# ###############????????? | | ??????????????"""?"""?# #????????? | | ??????????????"""?"""?+ #????????? | | ??????????????"""?"""?# #????????? | | ??????????????????????# ########### #????????? | | ??????????????????????# #?????????# #????????? | | ??????????????????????# Y #?????????# #????????? | | ????????? ############# ########### #????????? | | ????????# g # # #????????? | | ????????+ g a a # # #????????? | | ????????# # # #????????? | | ????????############### @# + #????????? | | ??????????????????????#%k%# # ####?????? | | ??????????????????????# # # !##????? | | ??????????????????????#% # # !#????? | | ??????????????????????# # # !#????? | | ??????????????????????#a #####+##### !#????? | | ??????????????????????# #???# #???# !#????? | | ???????????"""????????# #???# #???# ##????? | | ???????????"""????????# #?######### ####?????? | | ???????????"""????????# #?? # #????????? | | ??????????????????????# #?""" """ # ########?? | | ??????????????????????# #?""" """ # # #?? | | ?????????????????"""??# #?""" """ + # "" !#?? | | ?????????????????"""??# # # # ""S #?? | | ?????"""""???????"""??# r# # + "" #?? | | ?????"""""????????????# # # # #?? | | ?????"""""????????????# # # # #?? | | ??????????????????????# ########### ########?? | | ?????????????????????? #???####### #########? | | ??????????????????????? # % #? | | ??????????????????????????????####### # T #? | | ????????????????????????????????????# + """ #? | | ????????"""???????????????########### # """ #? | | ????????"Y"????"""????????# # # """ #? | | ???????????????"""????????# ! # #########? | +----------------------------------------------------+ Best States ------------- Heat Dissipation 41 Energy Generation 10 Energy Capacity 125 Matter Stores 300 Matter Capacity 300 Sight Range 16 Terrain Scan Density 10 Propulsion Shielding 33 Evasion (%) 55 Item Schematics ----------------- None Robot Schematics ------------------ None Fabricated ------------ Nothing Repaired ---------- Nothing Studied --------- None Alien Tech Used ----------------- None Achievements -------------- None Challenges ------------ None Game ------ Seed StrikeHypercooledHoverbase Manual? 0 Play Time 00:13:27 Cumulative 17.5 hours Start 2026.01.12 @ 15:21:12 End 2026.01.12 @ 15:36:34 Sessions 1 Manual Loads 0 Difficulty Rogue Special Mode None Game No. 45 Rogue 45 Adventurer 0 Explorer 0 Win Type - Total 0 Types 0/0/0/0/0/0/0/0/0/0 Lore% 11 Gallery% 19 Achievement% 15 Wizard Run 0 Options --------- Layout 0 ASCII 0 Keyboard 0 Movement Arrows Keybinds 0 Fullscreen 1 Font 18/SmallcapsGlow Map View 76x50 Zoom Use 0% Tactical HUD 1 Map Filters NONE Filters NONE Steam 1 RUN: 36dae668-d358-4321-b677-35c464f15a54